[Event "Titled Tuesday Blitz January 03 Late 2023"]
[White "Bjelobrk, Igor"]
[Black "Ankerst, Mihael"]
[WhiteFideId "4300726"]
[BlackFideId "14602369"]
[WhiteElo "2403"]
[BlackElo "2370"]
[Result "1-0"]
[Round "02"]
[TimeControl "180+2"]
[Date "2023.01.03"]
[WhiteClock "0:00:22"]
[BlackClock "0:00:03"]

1. Nf3 {[%clk 0:02:57]}  Nf6 {[%clk 0:02:59]} 2. c4 {[%clk 0:02:57]}  g6 {[%clk 0:02:59]} 3. Nc3 {[%clk 0:02:57]}  Bg7 {[%clk 0:03:00]} 4. e4 {[%clk 0:02:57]}  d6 {[%clk 0:03:00]} 5. d4 {[%clk 0:02:57]}  O-O {[%clk 0:03:01]} 6. h3 {[%clk 0:02:57]}  Nbd7 {[%clk 0:03:01]} 7. Be3 {[%clk 0:02:54]}  a6 {[%clk 0:03:01]} 8. Be2 {[%clk 0:02:47]}  c5 {[%clk 0:03:01]} 9. O-O {[%clk 0:02:47]}  cxd4 {[%clk 0:03:00]} 10. Nxd4 {[%clk 0:02:46]}  Nc5 {[%clk 0:02:56]} 11. Qc2 {[%clk 0:02:45]}  Ne6 {[%clk 0:02:55]} 12. Rad1 {[%clk 0:02:41]}  Nxd4 {[%clk 0:02:54]} 13. Bxd4 {[%clk 0:02:42]}  Be6 {[%clk 0:02:45]} 14. b3 {[%clk 0:02:39]}  Qa5 {[%clk 0:02:42]} 15. Qb2 {[%clk 0:02:18]}  Rfc8 {[%clk 0:02:30]} 16. f4 {[%clk 0:02:12]}  b5 {[%clk 0:02:14]} 17. f5 {[%clk 0:02:04]}  b4 {[%clk 0:02:13]} 18. fxe6 {[%clk 0:02:01]}  bxc3 {[%clk 0:02:11]} 19. exf7+ {[%clk 0:02:01]}  Kxf7 {[%clk 0:02:10]} 20. Bxc3 {[%clk 0:02:00]}  Qg5 {[%clk 0:02:03]} 21. e5 {[%clk 0:01:29]}  dxe5 {[%clk 0:01:54]} 22. Bxe5 {[%clk 0:01:30]}  Rd8 {[%clk 0:01:51]} 23. Bf3 {[%clk 0:01:10]}  Rac8 {[%clk 0:01:39]} 24. Qe2 {[%clk 0:01:02]}  a5 {[%clk 0:01:20]} 25. Kh1 {[%clk 0:00:51]}  Kg8 {[%clk 0:01:19]} 26. Bh2 {[%clk 0:00:43]}  Rxd1 {[%clk 0:01:12]} 27. Rxd1 {[%clk 0:00:42]}  Rf8 {[%clk 0:01:12]} 28. Qxe7 {[%clk 0:00:36]}  h5 {[%clk 0:01:00]} 29. c5 {[%clk 0:00:34]}  Rf7 {[%clk 0:00:56]} 30. Qd8+ {[%clk 0:00:33]}  Rf8 {[%clk 0:00:54]} 31. Qd4 {[%clk 0:00:33]}  Kh7 {[%clk 0:00:51]} 32. Qc4 {[%clk 0:00:32]}  Ng4 {[%clk 0:00:42]} 33. hxg4 {[%clk 0:00:30]}  h4 {[%clk 0:00:17]} 34. Bd6 {[%clk 0:00:30]}  Re8 {[%clk 0:00:15]} 35. Qd5 {[%clk 0:00:30]}  Qe3 {[%clk 0:00:12]} 36. c6 {[%clk 0:00:30]}  Be5 {[%clk 0:00:09]} 37. Bxe5 {[%clk 0:00:30]}  Rxe5 {[%clk 0:00:10]} 38. Qd2 {[%clk 0:00:29]}  Qb6 {[%clk 0:00:08]} 39. Re1 {[%clk 0:00:25]}  Rc5 {[%clk 0:00:07]} 40. Re7+ {[%clk 0:00:21]}  Kg8 {[%clk 0:00:07]} 41. Bd5+ {[%clk 0:00:20]}  Kf8 {[%clk 0:00:03]} 42. Rf7+ {[%clk 0:00:20]}  Ke8 {[%clk 0:00:04]} 43. Qe3+ {[%clk 0:00:20]}  Kd8 {[%clk 0:00:04]} 44. Qe7+ {[%clk 0:00:20]}  Kc8 {[%clk 0:00:05]} 45. Qd7+ {[%clk 0:00:20]}  Kb8 {[%clk 0:00:04]} 46. Rf8+ {[%clk 0:00:21]}  Qd8 {[%clk 0:00:03]} 47. Rxd8# {[%clk 0:00:22]} 1-0


[Site "https://www.chess.com"]

[Event "Titled Tuesday Blitz January 03 Late 2023"]
[White "Jaracz, Pawel"]
[Black "Ward, Ieuan C"]
[WhiteFideId "1102222"]
[BlackFideId "406627"]
[WhiteElo "2467"]
[BlackElo "2028"]
[Result "1-0"]
[Round "02"]
[TimeControl "180+2"]
[Date "2023.01.03"]
[WhiteClock "0:00:41"]
[BlackClock "0:00:11"]

1. e4 {[%clk 0:03:00]}  c5 {[%clk 0:02:58]} 2. Nf3 {[%clk 0:02:59]}  d6 {[%clk 0:02:59]} 3. d4 {[%clk 0:02:58]}  cxd4 {[%clk 0:02:59]} 4. Nxd4 {[%clk 0:02:58]}  Nf6 {[%clk 0:03:00]} 5. Nc3 {[%clk 0:02:59]}  a6 {[%clk 0:03:01]} 6. Be2 {[%clk 0:02:59]}  e5 {[%clk 0:03:01]} 7. Nb3 {[%clk 0:02:59]}  Be7 {[%clk 0:03:01]} 8. g4 {[%clk 0:02:59]}  Be6 {[%clk 0:02:52]} 9. g5 {[%clk 0:02:59]}  Nfd7 {[%clk 0:02:52]} 10. h4 {[%clk 0:02:59]}  Nc6 {[%clk 0:02:46]} 11. Bg4 {[%clk 0:02:59]}  Nc5 {[%clk 0:02:11]} 12. Be3 {[%clk 0:02:44]}  Bxg4 {[%clk 0:01:35]} 13. Qxg4 {[%clk 0:02:43]}  Qd7 {[%clk 0:01:33]} 14. Qxd7+ {[%clk 0:02:37]}  Nxd7 {[%clk 0:01:28]} 15. Nd5 {[%clk 0:02:37]}  O-O {[%clk 0:01:11]} 16. O-O-O {[%clk 0:02:34]}  Bd8 {[%clk 0:01:09]} 17. c3 {[%clk 0:02:19]}  f5 {[%clk 0:01:03]} 18. f3 {[%clk 0:02:17]}  Ne7 {[%clk 0:00:56]} 19. a4 {[%clk 0:01:43]}  Nxd5 {[%clk 0:00:55]} 20. Rxd5 {[%clk 0:01:43]}  Be7 {[%clk 0:00:53]} 21. Nd2 {[%clk 0:01:36]}  Rac8 {[%clk 0:00:50]} 22. Kd1 {[%clk 0:01:31]}  Nc5 {[%clk 0:00:48]} 23. Bxc5 {[%clk 0:01:30]}  Rxc5 {[%clk 0:00:49]} 24. Rxc5 {[%clk 0:01:28]}  dxc5 {[%clk 0:00:50]} 25. Ke2 {[%clk 0:01:22]}  fxe4 {[%clk 0:00:42]} 26. Nxe4 {[%clk 0:01:19]}  Kf7 {[%clk 0:00:38]} 27. a5 {[%clk 0:01:14]}  Ke6 {[%clk 0:00:35]} 28. h5 {[%clk 0:01:11]}  Rf5 {[%clk 0:00:29]} 29. Rg1 {[%clk 0:01:08]}  g6 {[%clk 0:00:23]} 30. hxg6 {[%clk 0:01:07]}  hxg6 {[%clk 0:00:24]} 31. Rh1 {[%clk 0:01:06]}  Bxg5 {[%clk 0:00:24]} 32. Rg1 {[%clk 0:01:06]}  Be7 {[%clk 0:00:19]} 33. Rxg6+ {[%clk 0:01:06]}  Kd7 {[%clk 0:00:19]} 34. Rg7 {[%clk 0:01:04]}  Kd8 {[%clk 0:00:19]} 35. Rg8+ {[%clk 0:00:57]}  Kc7 {[%clk 0:00:19]} 36. Rg6 {[%clk 0:00:52]}  Rh5 {[%clk 0:00:17]} 37. Kd3 {[%clk 0:00:51]}  Rh2 {[%clk 0:00:17]} 38. Nd2 {[%clk 0:00:51]}  Rh3 {[%clk 0:00:17]} 39. Re6 {[%clk 0:00:48]}  Bd6 {[%clk 0:00:17]} 40. Ne4 {[%clk 0:00:45]}  Bf8 {[%clk 0:00:16]} 41. Rf6 {[%clk 0:00:44]}  Be7 {[%clk 0:00:15]} 42. Rf5 {[%clk 0:00:43]}  Bd6 {[%clk 0:00:15]} 43. Kc4 {[%clk 0:00:43]}  Rh2 {[%clk 0:00:14]} 44. Rf7+ {[%clk 0:00:43]}  Kb8 {[%clk 0:00:13]} 45. Nxd6 {[%clk 0:00:42]}  Rxb2 {[%clk 0:00:13]} 46. Kxc5 {[%clk 0:00:42]}  Rb3 {[%clk 0:00:11]} 47. c4 {[%clk 0:00:42]}  Rxf3 {[%clk 0:00:11]} 48. Rxf3 {[%clk 0:00:41]} 1-0


[Site "https://www.chess.com"]

[Event "Titled Tuesday Blitz January 03 Late 2023"]
[White "Schmidt, Harald"]
[Black "Wieczorek, Oskar"]
[WhiteFideId "4648358"]
[BlackFideId "1133950"]
[WhiteElo "2347"]
[BlackElo "2512"]
[Result "0-1"]
[Round "02"]
[TimeControl "180+2"]
[Date "2023.01.03"]
[WhiteClock "0:00:42"]
[BlackClock "0:00:21"]

1. e4 {[%clk 0:02:59]}  c5 {[%clk 0:02:59]} 2. Nf3 {[%clk 0:02:58]}  e6 {[%clk 0:02:59]} 3. c3 {[%clk 0:02:57]}  d5 {[%clk 0:02:59]} 4. exd5 {[%clk 0:02:57]}  exd5 {[%clk 0:03:00]} 5. d4 {[%clk 0:02:56]}  Nf6 {[%clk 0:03:00]} 6. Be2 {[%clk 0:02:55]}  Bd6 {[%clk 0:02:44]} 7. O-O {[%clk 0:02:52]}  O-O {[%clk 0:02:44]} 8. Re1 {[%clk 0:02:52]}  Nc6 {[%clk 0:02:44]} 9. Bg5 {[%clk 0:02:50]}  h6 {[%clk 0:02:38]} 10. Bh4 {[%clk 0:02:50]}  Be6 {[%clk 0:02:34]} 11. Bg3 {[%clk 0:02:39]}  Bxg3 {[%clk 0:02:19]} 12. hxg3 {[%clk 0:02:38]}  Qb6 {[%clk 0:02:20]} 13. Qb3 {[%clk 0:02:37]}  Ne4 {[%clk 0:02:05]} 14. Qxb6 {[%clk 0:02:30]}  axb6 {[%clk 0:02:06]} 15. Bd3 {[%clk 0:02:25]}  Bf5 {[%clk 0:02:00]} 16. Bxe4 {[%clk 0:02:08]}  dxe4 {[%clk 0:02:00]} 17. d5 {[%clk 0:01:57]}  exf3 {[%clk 0:01:24]} 18. dxc6 {[%clk 0:01:55]}  bxc6 {[%clk 0:01:25]} 19. gxf3 {[%clk 0:01:54]}  Rfd8 {[%clk 0:01:20]} 20. Na3 {[%clk 0:01:52]}  b5 {[%clk 0:01:16]} 21. Rad1 {[%clk 0:01:45]}  Rxd1 {[%clk 0:01:03]} 22. Rxd1 {[%clk 0:01:44]}  b4 {[%clk 0:01:04]} 23. Nc4 {[%clk 0:01:32]}  Be6 {[%clk 0:00:57]} 24. Ne5 {[%clk 0:01:28]}  Rxa2 {[%clk 0:00:53]} 25. Nxc6 {[%clk 0:01:21]}  Rxb2 {[%clk 0:00:53]} 26. cxb4 {[%clk 0:01:20]}  cxb4 {[%clk 0:00:53]} 27. Rd8+ {[%clk 0:01:18]}  Kh7 {[%clk 0:00:53]} 28. Rb8 {[%clk 0:01:17]}  b3 {[%clk 0:00:50]} 29. Kg2 {[%clk 0:01:10]}  Rd2 {[%clk 0:00:41]} 30. Ne5 {[%clk 0:00:54]}  f6 {[%clk 0:00:34]} 31. Nc6 {[%clk 0:00:50]}  b2 {[%clk 0:00:23]} 32. g4 {[%clk 0:00:42]}  Ba2 {[%clk 0:00:21]} 0-1


[Site "https://www.chess.com"]

[Event "Titled Tuesday Blitz January 03 Late 2023"]
[White "Garcia Ramos, Daniel"]
[Black "Onslow, Alfie"]
[WhiteFideId "32010311"]
[BlackFideId "436976"]
[WhiteElo "2442"]
[BlackElo "2157"]
[Result "1-0"]
[Round "02"]
[TimeControl "180+2"]
[Date "2023.01.03"]
[WhiteClock "0:00:39"]
[BlackClock "0:00:06"]

1. e4 {[%clk 0:03:00]}  c5 {[%clk 0:02:59]} 2. Nf3 {[%clk 0:03:01]}  Nc6 {[%clk 0:02:59]} 3. d4 {[%clk 0:03:02]}  cxd4 {[%clk 0:02:59]} 4. Nxd4 {[%clk 0:03:02]}  e5 {[%clk 0:03:00]} 5. Nb5 {[%clk 0:03:02]}  d6 {[%clk 0:03:01]} 6. c4 {[%clk 0:03:01]}  Be7 {[%clk 0:02:59]} 7. N5c3 {[%clk 0:03:00]}  Nf6 {[%clk 0:02:58]} 8. Be2 {[%clk 0:02:59]}  O-O {[%clk 0:02:52]} 9. Be3 {[%clk 0:02:57]}  Be6 {[%clk 0:02:47]} 10. O-O {[%clk 0:02:57]}  Nd7 {[%clk 0:02:45]} 11. Na3 {[%clk 0:02:50]}  Rc8 {[%clk 0:02:43]} 12. Rc1 {[%clk 0:02:49]}  a6 {[%clk 0:02:39]} 13. Nc2 {[%clk 0:02:42]}  f5 {[%clk 0:02:23]} 14. exf5 {[%clk 0:02:41]}  Bxf5 {[%clk 0:02:23]} 15. Bf3 {[%clk 0:02:34]}  Nf6 {[%clk 0:02:19]} 16. b3 {[%clk 0:02:29]}  Qe8 {[%clk 0:02:18]} 17. Nd5 {[%clk 0:02:06]}  Nxd5 {[%clk 0:02:18]} 18. Bxd5+ {[%clk 0:02:04]}  Kh8 {[%clk 0:02:18]} 19. Qd2 {[%clk 0:02:03]}  Qg6 {[%clk 0:02:16]} 20. f3 {[%clk 0:01:57]}  b5 {[%clk 0:02:06]} 21. cxb5 {[%clk 0:01:54]}  axb5 {[%clk 0:02:07]} 22. Na3 {[%clk 0:01:51]}  Nd4 {[%clk 0:01:28]} 23. Bxd4 {[%clk 0:01:44]}  exd4 {[%clk 0:01:29]} 24. Qxd4 {[%clk 0:01:40]}  Bf6 {[%clk 0:01:22]} 25. Qd2 {[%clk 0:01:35]}  b4 {[%clk 0:01:15]} 26. Rxc8 {[%clk 0:01:31]}  Rxc8 {[%clk 0:01:01]} 27. Nc4 {[%clk 0:01:31]}  Bc3 {[%clk 0:00:59]} 28. Qf2 {[%clk 0:01:28]}  Qf6 {[%clk 0:00:58]} 29. Rd1 {[%clk 0:01:26]}  h6 {[%clk 0:00:48]} 30. Kh1 {[%clk 0:01:16]}  Re8 {[%clk 0:00:47]} 31. h3 {[%clk 0:01:12]}  Re7 {[%clk 0:00:19]} 32. f4 {[%clk 0:00:59]}  Qg6 {[%clk 0:00:16]} 33. Bf3 {[%clk 0:00:56]}  Bc2 {[%clk 0:00:16]} 34. Rxd6 {[%clk 0:00:53]}  Qf5 {[%clk 0:00:08]} 35. Rd8+ {[%clk 0:00:50]}  Kh7 {[%clk 0:00:09]} 36. Ne3 {[%clk 0:00:40]}  Qd3 {[%clk 0:00:06]} 37. Rxd3 {[%clk 0:00:39]} 1-0


[Site "https://www.chess.com"]

[Event "Titled Tuesday Blitz January 03 Late 2023"]
[White "Itkis, Boris"]
[Black "Morefield, Jason"]
[WhiteFideId "1209167"]
[BlackFideId "30920825"]
[WhiteElo "2329"]
[BlackElo "2167"]
[Result "0-1"]
[Round "02"]
[TimeControl "180+2"]
[Date "2023.01.03"]
[WhiteClock "0:00:12"]
[BlackClock "0:00:10"]

1. e4 {[%clk 0:03:00]}  d6 {[%clk 0:02:59]} 2. d4 {[%clk 0:03:00]}  Nf6 {[%clk 0:02:59]} 3. Nc3 {[%clk 0:03:00]}  g6 {[%clk 0:03:00]} 4. Bg5 {[%clk 0:03:01]}  c6 {[%clk 0:02:59]} 5. Qd2 {[%clk 0:03:00]}  Nbd7 {[%clk 0:02:58]} 6. f4 {[%clk 0:02:57]}  b5 {[%clk 0:02:56]} 7. e5 {[%clk 0:02:57]}  b4 {[%clk 0:02:56]} 8. exf6 {[%clk 0:02:46]}  bxc3 {[%clk 0:02:56]} 9. Qxc3 {[%clk 0:02:41]}  exf6 {[%clk 0:02:54]} 10. Bh4 {[%clk 0:02:28]}  Bb7 {[%clk 0:02:24]} 11. O-O-O {[%clk 0:02:27]}  Be7 {[%clk 0:02:22]} 12. Re1 {[%clk 0:02:24]}  O-O {[%clk 0:02:17]} 13. Nf3 {[%clk 0:02:22]}  Nb6 {[%clk 0:02:14]} 14. Bc4 {[%clk 0:02:13]}  d5 {[%clk 0:02:10]} 15. Bb3 {[%clk 0:02:13]}  a5 {[%clk 0:02:10]} 16. a3 {[%clk 0:02:11]}  Bd6 {[%clk 0:02:05]} 17. f5 {[%clk 0:02:04]}  Nd7 {[%clk 0:01:32]} 18. Bg3 {[%clk 0:01:56]}  Bxg3 {[%clk 0:01:28]} 19. hxg3 {[%clk 0:01:57]}  g5 {[%clk 0:01:24]} 20. g4 {[%clk 0:01:55]}  Kg7 {[%clk 0:01:22]} 21. Nd2 {[%clk 0:01:15]}  Rh8 {[%clk 0:01:05]} 22. Ba4 {[%clk 0:01:15]}  Nb6 {[%clk 0:01:00]} 23. Bb3 {[%clk 0:01:08]}  Qd6 {[%clk 0:00:57]} 24. Qh3 {[%clk 0:01:03]}  h6 {[%clk 0:00:52]} 25. Re3 {[%clk 0:00:52]}  c5 {[%clk 0:00:46]} 26. dxc5 {[%clk 0:00:48]}  Qxc5 {[%clk 0:00:47]} 27. Rc3 {[%clk 0:00:47]}  Qd6 {[%clk 0:00:47]} 28. Nf3 {[%clk 0:00:41]}  a4 {[%clk 0:00:39]} 29. Ba2 {[%clk 0:00:40]}  Rac8 {[%clk 0:00:32]} 30. Rxc8 {[%clk 0:00:33]}  Bxc8 {[%clk 0:00:33]} 31. Kb1 {[%clk 0:00:31]}  Qf4 {[%clk 0:00:25]} 32. Rd1 {[%clk 0:00:26]}  h5 {[%clk 0:00:23]} 33. gxh5 {[%clk 0:00:13]}  Bxf5 {[%clk 0:00:23]} 34. Qh1 {[%clk 0:00:12]}  Rc8 {[%clk 0:00:23]} 35. Nd4 {[%clk 0:00:12]}  Be4 {[%clk 0:00:19]} 36. h6+ {[%clk 0:00:13]}  Kh7 {[%clk 0:00:20]} 37. Qf1 {[%clk 0:00:12]}  Kxh6 {[%clk 0:00:11]} 38. Qxf4 {[%clk 0:00:11]}  gxf4 {[%clk 0:00:12]} 39. Kc1 {[%clk 0:00:11]}  Bxg2 {[%clk 0:00:09]} 40. Nf5+ {[%clk 0:00:11]}  Kg5 {[%clk 0:00:09]} 41. Ne7 {[%clk 0:00:10]}  Re8 {[%clk 0:00:09]} 42. Nxd5 {[%clk 0:00:10]}  Nxd5 {[%clk 0:00:09]} 43. Bxd5 {[%clk 0:00:11]}  Bxd5 {[%clk 0:00:09]} 44. Rxd5+ {[%clk 0:00:12]}  Re5 {[%clk 0:00:09]} 45. Rd4 {[%clk 0:00:12]}  f3 {[%clk 0:00:10]} 46. Kd2 {[%clk 0:00:12]}  f2 {[%clk 0:00:10]} 0-1


[Site "https://www.chess.com"]

[Event "Titled Tuesday Blitz January 03 Late 2023"]
[White "Goltsev, Dmitry"]
[Black "Tamarozi, Isabelle"]
[WhiteFideId "24176710"]
[BlackFideId "2132400"]
[WhiteElo "2269"]
[BlackElo "1982"]
[Result "1-0"]
[Round "02"]
[TimeControl "180+2"]
[Date "2023.01.03"]
[WhiteClock "0:02:39"]
[BlackClock "0:01:01"]

1. e4 {[%clk 0:02:58]}  c5 {[%clk 0:02:59]} 2. Nf3 {[%clk 0:02:58]}  Nc6 {[%clk 0:02:59]} 3. d4 {[%clk 0:02:58]}  cxd4 {[%clk 0:03:00]} 4. Nxd4 {[%clk 0:02:59]}  g6 {[%clk 0:03:00]} 5. Nxc6 {[%clk 0:02:59]}  bxc6 {[%clk 0:03:00]} 6. Qd4 {[%clk 0:02:59]}  Nf6 {[%clk 0:02:56]} 7. e5 {[%clk 0:02:59]}  Nd5 {[%clk 0:02:48]} 8. c4 {[%clk 0:02:59]}  Nc7 {[%clk 0:02:42]} 9. e6 {[%clk 0:02:59]}  f6 {[%clk 0:02:42]} 10. exd7+ {[%clk 0:02:59]}  Qxd7 {[%clk 0:02:37]} 11. Qxd7+ {[%clk 0:02:59]}  Bxd7 {[%clk 0:02:37]} 12. Nc3 {[%clk 0:02:59]}  e5 {[%clk 0:02:36]} 13. b3 {[%clk 0:02:59]}  a5 {[%clk 0:02:30]} 14. Ne4 {[%clk 0:02:58]}  Kf7 {[%clk 0:02:24]} 15. Bb2 {[%clk 0:02:57]}  Ne6 {[%clk 0:02:23]} 16. O-O-O {[%clk 0:02:56]}  Bh6+ {[%clk 0:02:13]} 17. Kc2 {[%clk 0:02:52]}  Nd4+ {[%clk 0:02:01]} 18. Bxd4 {[%clk 0:02:51]}  exd4 {[%clk 0:02:01]} 19. Rxd4 {[%clk 0:02:52]}  Bf5 {[%clk 0:01:58]} 20. Bd3 {[%clk 0:02:46]}  Bxe4 {[%clk 0:01:47]} 21. Bxe4 {[%clk 0:02:46]}  Rad8 {[%clk 0:01:42]} 22. Rhd1 {[%clk 0:02:44]}  Rxd4 {[%clk 0:01:41]} 23. Rxd4 {[%clk 0:02:45]}  Re8 {[%clk 0:01:40]} 24. Kd3 {[%clk 0:02:40]}  a4 {[%clk 0:01:02]} 25. Bxc6 {[%clk 0:02:38]}  axb3 {[%clk 0:01:01]} 26. Bxe8+ {[%clk 0:02:38]}  Kxe8 {[%clk 0:01:01]} 27. axb3 {[%clk 0:02:39]} 1-0


[Site "https://www.chess.com"]

[Event "Titled Tuesday Blitz January 03 Late 2023"]
[White "Indjic, Aleksandar"]
[Black "Karas, Marek"]
[WhiteFideId "911925"]
[BlackFideId "14928558"]
[WhiteElo "2618"]
[BlackElo "2227"]
[Result "1-0"]
[Round "02"]
[TimeControl "180+2"]
[Date "2023.01.03"]
[WhiteClock "0:00:34"]
[BlackClock "0:00:02"]

1. b3 {[%clk 0:03:00]}  d5 {[%clk 0:02:59]} 2. Bb2 {[%clk 0:02:59]}  Bg4 {[%clk 0:02:59]} 3. f3 {[%clk 0:02:56]}  Bf5 {[%clk 0:02:59]} 4. e4 {[%clk 0:02:56]}  Bg6 {[%clk 0:03:00]} 5. exd5 {[%clk 0:02:53]}  Qxd5 {[%clk 0:02:57]} 6. Nc3 {[%clk 0:02:52]}  Qd6 {[%clk 0:02:55]} 7. Qe2 {[%clk 0:02:50]}  Nc6 {[%clk 0:02:52]} 8. Qc4 {[%clk 0:02:42]}  Nf6 {[%clk 0:02:43]} 9. O-O-O {[%clk 0:02:41]}  O-O-O {[%clk 0:02:32]} 10. Ne4 {[%clk 0:02:37]}  Qb4 {[%clk 0:02:23]} 11. Qxb4 {[%clk 0:02:15]}  Nxb4 {[%clk 0:02:24]} 12. a3 {[%clk 0:02:14]}  Nc6 {[%clk 0:02:12]} 13. Re1 {[%clk 0:02:15]}  Nxe4 {[%clk 0:02:07]} 14. fxe4 {[%clk 0:02:13]}  e5 {[%clk 0:02:07]} 15. h4 {[%clk 0:02:09]}  f6 {[%clk 0:02:03]} 16. h5 {[%clk 0:02:09]}  Bf7 {[%clk 0:02:00]} 17. Nf3 {[%clk 0:02:09]}  Bc5 {[%clk 0:01:55]} 18. g4 {[%clk 0:02:06]}  h6 {[%clk 0:01:52]} 19. Nh4 {[%clk 0:01:59]}  Ne7 {[%clk 0:01:49]} 20. Nf5 {[%clk 0:01:58]}  Nxf5 {[%clk 0:01:43]} 21. gxf5 {[%clk 0:01:59]}  Bd4 {[%clk 0:01:30]} 22. c3 {[%clk 0:01:58]}  Bc5 {[%clk 0:01:29]} 23. Kc2 {[%clk 0:01:56]}  Bb6 {[%clk 0:01:26]} 24. a4 {[%clk 0:01:54]}  a5 {[%clk 0:01:25]} 25. Ba3 {[%clk 0:01:53]}  Rd7 {[%clk 0:01:24]} 26. Bc4 {[%clk 0:01:50]}  Bxc4 {[%clk 0:01:18]} 27. bxc4 {[%clk 0:01:51]}  c6 {[%clk 0:01:13]} 28. Re2 {[%clk 0:01:49]}  Bd8 {[%clk 0:01:07]} 29. Rg1 {[%clk 0:01:47]}  Be7 {[%clk 0:01:03]} 30. c5 {[%clk 0:01:44]}  Bf8 {[%clk 0:00:57]} 31. Kb3 {[%clk 0:01:40]}  Rd3 {[%clk 0:00:55]} 32. Kc4 {[%clk 0:01:32]}  Rh3 {[%clk 0:00:54]} 33. Bc1 {[%clk 0:01:31]}  Rxh5 {[%clk 0:00:53]} 34. d4 {[%clk 0:01:31]}  Rh3 {[%clk 0:00:45]} 35. dxe5 {[%clk 0:01:28]}  fxe5 {[%clk 0:00:43]} 36. Be3 {[%clk 0:01:17]}  h5 {[%clk 0:00:41]} 37. Rg6 {[%clk 0:01:16]}  h4 {[%clk 0:00:36]} 38. Re6 {[%clk 0:01:16]}  Rg3 {[%clk 0:00:27]} 39. Rxe5 {[%clk 0:01:03]}  h3 {[%clk 0:00:22]} 40. Bf4 {[%clk 0:01:04]}  Rg2 {[%clk 0:00:20]} 41. Re1 {[%clk 0:01:01]}  h2 {[%clk 0:00:18]} 42. Rd1 {[%clk 0:01:00]}  Bxc5 {[%clk 0:00:14]} 43. Bxh2 {[%clk 0:00:59]}  Rgxh2 {[%clk 0:00:11]} 44. Kxc5 {[%clk 0:00:59]}  Rd8 {[%clk 0:00:11]} 45. Rxd8+ {[%clk 0:00:53]}  Kxd8 {[%clk 0:00:12]} 46. Re6 {[%clk 0:00:53]}  Ra2 {[%clk 0:00:10]} 47. c4 {[%clk 0:00:47]}  Rxa4 {[%clk 0:00:09]} 48. Rg6 {[%clk 0:00:48]}  b6+ {[%clk 0:00:07]} 49. Kd6 {[%clk 0:00:46]}  Rxc4 {[%clk 0:00:08]} 50. e5 {[%clk 0:00:44]}  Rf4 {[%clk 0:00:04]} 51. Ke6 {[%clk 0:00:44]}  a4 {[%clk 0:00:03]} 52. Rxg7 {[%clk 0:00:44]}  a3 {[%clk 0:00:03]} 53. Ra7 {[%clk 0:00:44]}  Rf3 {[%clk 0:00:03]} 54. f6 {[%clk 0:00:44]}  b5 {[%clk 0:00:04]} 55. Kd6 {[%clk 0:00:44]}  Rd3+ {[%clk 0:00:04]} 56. Kxc6 {[%clk 0:00:44]}  Rc3+ {[%clk 0:00:02]} 57. Kxb5 {[%clk 0:00:42]}  Ke8 {[%clk 0:00:02]} 58. e6 {[%clk 0:00:41]}  Rc8 {[%clk 0:00:02]} 59. Rh7 {[%clk 0:00:38]}  Rb8+ {[%clk 0:00:02]} 60. Ka4 {[%clk 0:00:36]}  Ra8+ {[%clk 0:00:02]} 61. Kb3 {[%clk 0:00:36]}  Rb8+ {[%clk 0:00:01]} 62. Ka2 {[%clk 0:00:35]}  Rb2+ {[%clk 0:00:01]} 63. Kxa3 {[%clk 0:00:35]}  Kd8 {[%clk 0:00:02]} 64. Kxb2 {[%clk 0:00:34]} 1-0


[Site "https://www.chess.com"]

[Event "Titled Tuesday Blitz January 03 Late 2023"]
[White "Dzierzak, Radoslaw"]
[Black "Girel, Joseph"]
[WhiteFideId "1161407"]
[BlackFideId "36033561"]
[WhiteElo "2220"]
[BlackElo "2395"]
[Result "0-1"]
[Round "02"]
[TimeControl "180+2"]
[Date "2023.01.03"]
[WhiteClock "0:00:27"]
[BlackClock "0:01:53"]

1. e4 {[%clk 0:02:56]}  c5 {[%clk 0:02:59]} 2. Nf3 {[%clk 0:02:57]}  e6 {[%clk 0:03:00]} 3. d4 {[%clk 0:02:57]}  cxd4 {[%clk 0:03:01]} 4. Nxd4 {[%clk 0:02:58]}  Nf6 {[%clk 0:03:01]} 5. Nc3 {[%clk 0:02:58]}  Nc6 {[%clk 0:03:02]} 6. g3 {[%clk 0:02:58]}  d5 {[%clk 0:03:00]} 7. exd5 {[%clk 0:02:55]}  exd5 {[%clk 0:03:01]} 8. Bg2 {[%clk 0:02:55]}  Bg4 {[%clk 0:03:01]} 9. Qd3 {[%clk 0:02:30]}  Bc5 {[%clk 0:03:00]} 10. Nb3 {[%clk 0:02:15]}  Bb6 {[%clk 0:03:00]} 11. O-O {[%clk 0:01:59]}  O-O {[%clk 0:02:59]} 12. Bg5 {[%clk 0:01:49]}  Ne5 {[%clk 0:02:48]} 13. Qd2 {[%clk 0:01:37]}  Nf3+ {[%clk 0:02:48]} 14. Bxf3 {[%clk 0:01:37]}  Bxf3 {[%clk 0:02:49]} 15. Nd4 {[%clk 0:01:34]}  Bxd4 {[%clk 0:02:28]} 16. Qxd4 {[%clk 0:01:35]}  Qd7 {[%clk 0:02:28]} 17. Qf4 {[%clk 0:01:26]}  Qg4 {[%clk 0:02:22]} 18. Bxf6 {[%clk 0:00:49]}  Qxf4 {[%clk 0:02:18]} 19. gxf4 {[%clk 0:00:50]}  gxf6 {[%clk 0:02:18]} 20. Rfe1 {[%clk 0:00:51]}  d4 {[%clk 0:02:17]} 21. Ne4 {[%clk 0:00:50]}  Kh8 {[%clk 0:02:14]} 22. Nxf6 {[%clk 0:00:49]}  Rac8 {[%clk 0:02:08]} 23. Rac1 {[%clk 0:00:28]}  Rc6 {[%clk 0:01:56]} 24. Re8 {[%clk 0:00:26]}  Rxe8 {[%clk 0:01:55]} 25. Nxe8 {[%clk 0:00:27]}  d3 {[%clk 0:01:53]} 0-1


[Site "https://www.chess.com"]

[Event "Titled Tuesday Blitz January 03 Late 2023"]
[White "Pakleza, Zbigniew"]
[Black "Adewumi, Tanitoluwa"]
[WhiteFideId "1119290"]
[BlackFideId "30966396"]
[WhiteElo "2494"]
[BlackElo "2283"]
[Result "1-0"]
[Round "02"]
[TimeControl "180+2"]
[Date "2023.01.03"]
[WhiteClock "0:00:42"]
[BlackClock "0:00:01"]

1. d4 {[%clk 0:03:00]}  Nf6 {[%clk 0:02:39]} 2. Nf3 {[%clk 0:03:00]}  e6 {[%clk 0:02:37]} 3. Bf4 {[%clk 0:03:00]}  c5 {[%clk 0:02:35]} 4. c3 {[%clk 0:03:00]}  Nc6 {[%clk 0:02:35]} 5. e3 {[%clk 0:03:00]}  d5 {[%clk 0:02:33]} 6. Nbd2 {[%clk 0:03:00]}  Bd6 {[%clk 0:02:30]} 7. Bg3 {[%clk 0:03:00]}  O-O {[%clk 0:02:28]} 8. Bd3 {[%clk 0:02:59]}  Re8 {[%clk 0:02:26]} 9. Ne5 {[%clk 0:02:59]}  Ne7 {[%clk 0:02:17]} 10. f4 {[%clk 0:02:54]}  Nf5 {[%clk 0:02:16]} 11. Bf2 {[%clk 0:02:55]}  h5 {[%clk 0:02:16]} 12. h3 {[%clk 0:02:49]}  g6 {[%clk 0:01:49]} 13. g4 {[%clk 0:02:43]}  Ng7 {[%clk 0:01:45]} 14. Qf3 {[%clk 0:02:39]}  b6 {[%clk 0:01:29]} 15. Bh4 {[%clk 0:02:36]}  Bb7 {[%clk 0:01:05]} 16. gxh5 {[%clk 0:02:36]}  Ngxh5 {[%clk 0:00:34]} 17. Nxg6 {[%clk 0:02:36]}  fxg6 {[%clk 0:00:33]} 18. Bxg6 {[%clk 0:02:37]}  Ng7 {[%clk 0:00:12]} 19. Rg1 {[%clk 0:02:37]}  Rf8 {[%clk 0:00:08]} 20. O-O-O {[%clk 0:02:37]}  cxd4 {[%clk 0:00:07]} 21. cxd4 {[%clk 0:02:33]}  Qc7+ {[%clk 0:00:05]} 22. Kb1 {[%clk 0:02:34]}  Rac8 {[%clk 0:00:04]} 23. Bg5 {[%clk 0:02:29]}  Ne4 {[%clk 0:00:03]} 24. Nxe4 {[%clk 0:02:13]}  Qc2+ {[%clk 0:00:02]} 25. Ka1 {[%clk 0:02:14]}  dxe4 {[%clk 0:00:02]} 26. Qg4 {[%clk 0:02:12]}  Ba3 {[%clk 0:00:02]} 27. Rb1 {[%clk 0:02:12]}  Qd2 {[%clk 0:00:01]} 28. Qg2 {[%clk 0:01:22]}  Qd3 {[%clk 0:00:01]} 29. Bh6 {[%clk 0:00:58]}  Rc7 {[%clk 0:00:01]} 30. Bh5 {[%clk 0:00:52]}  Bd5 {[%clk 0:00:01]} 31. Bxg7 {[%clk 0:00:50]}  Bxb2+ {[%clk 0:00:02]} 32. Rxb2 {[%clk 0:00:50]}  Rfc8 {[%clk 0:00:02]} 33. Be5+ {[%clk 0:00:42]}  Kf8 {[%clk 0:00:02]} 34. Bd6+ {[%clk 0:00:41]}  Re7 {[%clk 0:00:01]} 35. Qg8# {[%clk 0:00:42]} 1-0


[Site "https://www.chess.com"]